[Event "Early-Titled-Tuesday-Blitz-June-18-2024"]
[Site "Chess.com"]
[Date "2024.06.18"]
[Round "2"]
[White "AniJak"]
[Black "BigAl"]
[Result "0-1"]
[WhiteElo "2347"]
[BlackElo "2542"]
[TimeControl "180+1"]
[EndTime "8:17:55 PDT"]
[Termination "BigAl won by resignation"]

1. e4 {[%clk 0:03:00.9]} 1... c6 {[%clk 0:02:58.9]} 2. d4 {[%clk 0:03:00.5]}
2... d5 {[%clk 0:02:59]} 3. e5 {[%clk 0:03:01.1]} 3... Bf5 {[%clk 0:02:58.7]} 4.
Nf3 {[%clk 0:03:01.4]} 4... e6 {[%clk 0:02:58.6]} 5. Be2 {[%clk 0:03:02]} 5...
Ne7 {[%clk 0:02:59.2]} 6. O-O {[%clk 0:03:02]} 6... Ng6 {[%clk 0:02:59.8]} 7.
Nbd2 {[%clk 0:03:00.2]} 7... Nf4 {[%clk 0:02:59.1]} 8. Nb3 {[%clk 0:02:57.9]}
8... Nxe2+ {[%clk 0:02:59.2]} 9. Qxe2 {[%clk 0:02:57.8]} 9... Nd7 {[%clk
0:02:57]} 10. Be3 {[%clk 0:02:52.5]} 10... Be7 {[%clk 0:02:56.3]} 11. a4 {[%clk
0:02:51]} 11... O-O {[%clk 0:02:49.6]} 12. a5 {[%clk 0:02:49.9]} 12... a6 {[%clk
0:02:45.5]} 13. Rfd1 {[%clk 0:02:43.1]} 13... Rc8 {[%clk 0:02:44]} 14. Nc5
{[%clk 0:02:36.7]} 14... Bxc5 {[%clk 0:02:29.9]} 15. dxc5 {[%clk 0:02:36.8]}
15... Bg4 {[%clk 0:02:29.7]} 16. Bd4 {[%clk 0:02:35.1]} 16... f6 {[%clk
0:02:07]} 17. exf6 {[%clk 0:02:27.4]} 17... Nxf6 {[%clk 0:02:00.6]} 18. h3
{[%clk 0:02:24.2]} 18... Bxf3 {[%clk 0:01:59.8]} 19. Qxf3 {[%clk 0:02:14.3]}
19... Ne4 {[%clk 0:01:58.7]} 20. Qg4 {[%clk 0:02:13.3]} 20... Qe7 {[%clk
0:01:48]} 21. f3 {[%clk 0:02:06.1]} 21... Nxc5 {[%clk 0:01:33.7]} 22. Re1 {[%clk
0:01:54.6]} 22... Rce8 {[%clk 0:01:33.7]} 23. b4 {[%clk 0:01:46.5]} 23... Nd7
{[%clk 0:01:31.3]} 24. Rxe6 {[%clk 0:01:47]} 24... Qf7 {[%clk 0:01:28.4]} 25.
Ree1 {[%clk 0:01:07]} 25... Nf6 {[%clk 0:01:11.5]} 26. Qg3 {[%clk 0:01:07]}
26... Nh5 {[%clk 0:01:10]} 27. Qd6 {[%clk 0:01:05]} 27... Nf4 {[%clk 0:01:08.7]}
28. Bc5 {[%clk 0:00:50.9]} 28... Rd8 {[%clk 0:00:55.6]} 29. Qe7 {[%clk
0:00:49.4]} 29... Qg6 {[%clk 0:00:52.5]} 30. g4 {[%clk 0:00:37.5]} 30... Nxh3+
{[%clk 0:00:49.8]} 31. Kh2 {[%clk 0:00:37.3]} 31... Ng5 {[%clk 0:00:45]} 32. Re3
{[%clk 0:00:20.5]} 32... Rde8 {[%clk 0:00:33.2]} 33. Qxf8+ {[%clk 0:00:12]}
33... Rxf8 {[%clk 0:00:33]} 34. Bxf8 {[%clk 0:00:12.9]} 34... Qh6+ {[%clk
0:00:28.9]} 35. Kg1 {[%clk 0:00:12.6]} 35... Nh3+ {[%clk 0:00:28.2]} 36. Kg2
{[%clk 0:00:12.5]} 36... Qxe3 {[%clk 0:00:28.4]} 37. Kxh3 {[%clk 0:00:12.1]}
37... Kxf8 {[%clk 0:00:28.1]} 0-1

[Event "Early-Titled-Tuesday-Blitz-June-18-2024"]
[Site "Chess.com"]
[Date "2024.06.18"]
[Round "2"]
[White "monomita"]
[Black "malakismayil"]
[Result "1-0"]
[WhiteElo "2786"]
[BlackElo "2556"]
[TimeControl "180+1"]
[EndTime "8:17:56 PDT"]
[Termination "monomita won by checkmate"]

1. d4 {[%clk 0:03:00.9]} 1... d5 {[%clk 0:02:51.6]} 2. Bf4 {[%clk 0:02:59.9]}
2... e6 {[%clk 0:02:50.5]} 3. Nc3 {[%clk 0:02:57]} 3... Bb4 {[%clk 0:02:46.9]}
4. Qd3 {[%clk 0:02:56.7]} 4... Nf6 {[%clk 0:02:46.2]} 5. O-O-O {[%clk
0:02:44.6]} 5... O-O {[%clk 0:02:38.6]} 6. g4 {[%clk 0:02:22.4]} 6... c5 {[%clk
0:02:19]} 7. g5 {[%clk 0:02:09.5]} 7... Nh5 {[%clk 0:02:17.5]} 8. Bxb8 {[%clk
0:01:52.2]} 8... Rxb8 {[%clk 0:02:07.7]} 9. h4 {[%clk 0:01:51.5]} 9... Qa5
{[%clk 0:01:55.5]} 10. dxc5 {[%clk 0:01:37.7]} 10... Bxc3 {[%clk 0:01:53.1]} 11.
Qxc3 {[%clk 0:01:37.2]} 11... Qxa2 {[%clk 0:01:53.1]} 12. e3 {[%clk 0:01:27]}
12... Bd7 {[%clk 0:01:45.3]} 13. Be2 {[%clk 0:01:26]} 13... g6 {[%clk
0:01:43.4]} 14. Bxh5 {[%clk 0:01:25.1]} 14... gxh5 {[%clk 0:01:44.3]} 15. Ne2
{[%clk 0:01:17.8]} 15... Rfc8 {[%clk 0:00:57.4]} 16. Ng3 {[%clk 0:01:08.9]}
16... b6 {[%clk 0:00:57.1]} 17. Nxh5 {[%clk 0:01:07.7]} 17... Kf8 {[%clk
0:00:55.8]} 18. Qh8+ {[%clk 0:00:40.6]} 18... Ke7 {[%clk 0:00:55.5]} 19. Qf6+
{[%clk 0:00:41.2]} 19... Ke8 {[%clk 0:00:41.1]} 20. c6 {[%clk 0:00:34.3]} 20...
Bxc6 {[%clk 0:00:19]} 21. Ng7+ {[%clk 0:00:32.6]} 21... Kf8 {[%clk 0:00:18.7]}
22. Nxe6+ {[%clk 0:00:32.1]} 22... Ke8 {[%clk 0:00:19.2]} 23. Ng7+ {[%clk
0:00:30.3]} 23... Kf8 {[%clk 0:00:19]} 24. Nf5 {[%clk 0:00:24.6]} 24... Qa1+
{[%clk 0:00:13.6]} 25. Kd2 {[%clk 0:00:25]} 25... Qa5+ {[%clk 0:00:14.4]} 26. c3
{[%clk 0:00:23.8]} 26... Qb5 {[%clk 0:00:02.9]} 27. Qh8# {[%clk 0:00:21]} 1-0

[Event "Early-Titled-Tuesday-Blitz-June-18-2024"]
[Site "Chess.com"]
[Date "2024.06.18"]
[Round "2"]
[White "GM-2024-GM"]
[Black "SuperPower2011"]
[Result "1/2-1/2"]
[WhiteElo "2306"]
[BlackElo "2707"]
[TimeControl "180+1"]
[EndTime "8:17:56 PDT"]
[Termination "Game drawn by repetition"]

1. e4 {[%clk 0:03:00.9]} 1... c5 {[%clk 0:03:00.2]} 2. Nf3 {[%clk 0:03:00.7]}
2... e6 {[%clk 0:03:00.9]} 3. d4 {[%clk 0:03:01]} 3... cxd4 {[%clk 0:03:01.8]}
4. Nxd4 {[%clk 0:03:01.5]} 4... Nc6 {[%clk 0:03:02.7]} 5. Nc3 {[%clk 0:03:00.9]}
5... Nf6 {[%clk 0:03:03.2]} 6. Ndb5 {[%clk 0:03:00]} 6... Bc5 {[%clk 0:03:02.5]}
7. Nd6+ {[%clk 0:02:53.7]} 7... Ke7 {[%clk 0:03:02.4]} 8. Bf4 {[%clk 0:02:53]}
8... e5 {[%clk 0:03:03.1]} 9. Nf5+ {[%clk 0:02:53.1]} 9... Kf8 {[%clk
0:03:03.8]} 10. Bg5 {[%clk 0:02:53.6]} 10... Bb4 {[%clk 0:03:04.6]} 11. Bc4
{[%clk 0:02:31.2]} 11... d5 {[%clk 0:03:04.4]} 12. Bxf6 {[%clk 0:02:29.8]} 12...
Qxf6 {[%clk 0:03:04]} 13. Qxd5 {[%clk 0:01:37]} 13... Bxf5 {[%clk 0:02:06.6]}
14. exf5 {[%clk 0:01:36.3]} 14... Rd8 {[%clk 0:02:06.6]} 15. Qb5 {[%clk
0:01:22.8]} 15... g6 {[%clk 0:01:50.7]} 16. O-O {[%clk 0:01:10.1]} 16... Bxc3
{[%clk 0:01:43]} 17. bxc3 {[%clk 0:01:11]} 17... gxf5 {[%clk 0:01:42.9]} 18.
Rad1 {[%clk 0:01:06.5]} 18... Kg7 {[%clk 0:01:32.7]} 19. Qxb7 {[%clk 0:01:05.4]}
19... e4 {[%clk 0:01:32.2]} 20. Qc7 {[%clk 0:00:44.5]} 20... Ne5 {[%clk
0:01:27.8]} 21. Bb3 {[%clk 0:00:20.4]} 21... Rhg8 {[%clk 0:01:10.2]} 22. Qxa7
{[%clk 0:00:16.8]} 22... Kh8 {[%clk 0:00:38.2]} 23. Rxd8 {[%clk 0:00:14.1]}
23... Rxd8 {[%clk 0:00:39.1]} 24. Qe3 {[%clk 0:00:13.5]} 24... Nf3+ {[%clk
0:00:26.9]} 25. gxf3 {[%clk 0:00:10.8]} 25... Rg8+ {[%clk 0:00:26.6]} 26. Kh1
{[%clk 0:00:11]} 26... Qg6 {[%clk 0:00:20.5]} 27. Qd4+ {[%clk 0:00:08.8]} 27...
Rg7 {[%clk 0:00:20.6]} 28. Qd8+ {[%clk 0:00:04.2]} 28... Rg8 {[%clk 0:00:21.2]}
29. Qd4+ {[%clk 0:00:04.9]} 29... Rg7 {[%clk 0:00:19.3]} 30. Qd8+ {[%clk
0:00:03.9]} 30... Rg8 {[%clk 0:00:19.9]} 31. Qd4+ {[%clk 0:00:04.6]} 1/2-1/2

[Event "Early-Titled-Tuesday-Blitz-June-18-2024"]
[Site "Chess.com"]
[Date "2024.06.18"]
[Round "2"]
[White "kyuotbi"]
[Black "muncettin"]
[Result "1-0"]
[WhiteElo "2317"]
[BlackElo "2512"]
[TimeControl "180+1"]
[EndTime "8:17:56 PDT"]
[Termination "kyuotbi won by resignation"]

1. e4 {[%clk 0:02:54.1]} 1... e5 {[%clk 0:02:59.8]} 2. Nf3 {[%clk 0:02:53.8]}
2... Nc6 {[%clk 0:02:59.9]} 3. Bb5 {[%clk 0:02:54.1]} 3... a6 {[%clk 0:03:00]}
4. Ba4 {[%clk 0:02:54.5]} 4... Nf6 {[%clk 0:03:00.3]} 5. O-O {[%clk 0:02:55.1]}
5... Be7 {[%clk 0:03:01]} 6. Re1 {[%clk 0:02:54.5]} 6... b5 {[%clk 0:03:01.7]}
7. Bb3 {[%clk 0:02:54.8]} 7... d6 {[%clk 0:03:02.4]} 8. c3 {[%clk 0:02:53.8]}
8... O-O {[%clk 0:03:02.9]} 9. h3 {[%clk 0:02:53.2]} 9... Na5 {[%clk 0:03:03.6]}
10. Bc2 {[%clk 0:02:52.9]} 10... c5 {[%clk 0:03:04.4]} 11. d4 {[%clk 0:02:52.8]}
11... Qc7 {[%clk 0:03:05.2]} 12. Nbd2 {[%clk 0:02:49.3]} 12... cxd4 {[%clk
0:03:04.9]} 13. cxd4 {[%clk 0:02:48.8]} 13... Nc6 {[%clk 0:03:05.8]} 14. Nb3
{[%clk 0:02:48.2]} 14... a5 {[%clk 0:03:05.6]} 15. Be3 {[%clk 0:02:48.1]} 15...
a4 {[%clk 0:03:00.4]} 16. Nbd2 {[%clk 0:02:47.7]} 16... Nb4 {[%clk 0:02:57.9]}
17. Bb1 {[%clk 0:02:47.4]} 17... Bd7 {[%clk 0:02:49.6]} 18. a3 {[%clk
0:02:43.4]} 18... Na6 {[%clk 0:02:49.7]} 19. Bd3 {[%clk 0:02:40.2]} 19... Rae8
{[%clk 0:02:26.9]} 20. dxe5 {[%clk 0:02:28.9]} 20... dxe5 {[%clk 0:02:27.8]} 21.
Qe2 {[%clk 0:02:27.5]} 21... Qb8 {[%clk 0:02:21.1]} 22. b3 {[%clk 0:02:10.5]}
22... Nc5 {[%clk 0:02:09.7]} 23. bxa4 {[%clk 0:02:00.4]} 23... bxa4 {[%clk
0:02:01.4]} 24. Rab1 {[%clk 0:01:56.7]} 24... Nb3 {[%clk 0:01:53.1]} 25. Bc4
{[%clk 0:01:47.9]} 25... Qa8 {[%clk 0:01:26.2]} 26. Nxb3 {[%clk 0:01:45.1]}
26... axb3 {[%clk 0:01:27.1]} 27. Bxb3 {[%clk 0:01:44.8]} 27... Qxe4 {[%clk
0:01:19.9]} 28. Bc2 {[%clk 0:01:38.6]} 28... Qa8 {[%clk 0:01:06]} 29. Nxe5
{[%clk 0:01:31.2]} 29... Qxa3 {[%clk 0:00:51.3]} 30. Nxd7 {[%clk 0:01:28.4]}
30... Nxd7 {[%clk 0:00:52.2]} 31. Ra1 {[%clk 0:01:24.3]} 31... Qc3 {[%clk
0:00:39.6]} 32. Rad1 {[%clk 0:01:12]} 32... Nf6 {[%clk 0:00:31.3]} 33. Bd4
{[%clk 0:01:09]} 33... Qc8 {[%clk 0:00:31]} 34. Qd3 {[%clk 0:01:08.7]} 34... g6
{[%clk 0:00:27.9]} 35. Rxe7 {[%clk 0:01:07.6]} 35... Rxe7 {[%clk 0:00:21.8]} 36.
Bxf6 {[%clk 0:01:08]} 36... Re6 {[%clk 0:00:21.5]} 37. Bb2 {[%clk 0:01:04.3]}
37... Rfe8 {[%clk 0:00:21.7]} 38. Qd4 {[%clk 0:01:00.4]} 38... Re5 {[%clk
0:00:20.4]} 39. Ba4 {[%clk 0:00:57.2]} 39... Re1+ {[%clk 0:00:18.6]} 40. Rxe1
{[%clk 0:00:55.8]} 40... Rxe1+ {[%clk 0:00:19.5]} 41. Kh2 {[%clk 0:00:56.1]}
41... Qc7+ {[%clk 0:00:15.2]} 42. g3 {[%clk 0:00:55.3]} 42... Kf8 {[%clk
0:00:15.8]} 43. Qh8+ {[%clk 0:00:51.8]} 43... Ke7 {[%clk 0:00:16.2]} 44. Qe8+
{[%clk 0:00:52.4]} 1-0

[Event "Early-Titled-Tuesday-Blitz-June-18-2024"]
[Site "Chess.com"]
[Date "2024.06.18"]
[Round "2"]
[White "Omranalhosani21"]
[Black "FGHSMN"]
[Result "0-1"]
[WhiteElo "2543"]
[BlackElo "2913"]
[TimeControl "180+1"]
[EndTime "8:17:57 PDT"]
[Termination "FGHSMN won by resignation"]

1. d4 {[%clk 0:02:58.4]} 1... Nf6 {[%clk 0:02:59.5]} 2. c4 {[%clk 0:02:50.4]}
2... e6 {[%clk 0:02:58.5]} 3. Nc3 {[%clk 0:02:45.2]} 3... Bb4 {[%clk 0:02:58.5]}
4. Qc2 {[%clk 0:02:40.5]} 4... d5 {[%clk 0:02:57.7]} 5. cxd5 {[%clk 0:02:40.6]}
5... exd5 {[%clk 0:02:57.8]} 6. Bg5 {[%clk 0:02:38.3]} 6... h6 {[%clk
0:02:56.9]} 7. Bxf6 {[%clk 0:02:37]} 7... Qxf6 {[%clk 0:02:56.2]} 8. e3 {[%clk
0:02:37.4]} 8... O-O {[%clk 0:02:51.1]} 9. Nf3 {[%clk 0:02:36.6]} 9... c6 {[%clk
0:02:50.7]} 10. Bd3 {[%clk 0:02:36.6]} 10... Nd7 {[%clk 0:02:48.7]} 11. O-O
{[%clk 0:02:36.9]} 11... Qe7 {[%clk 0:02:48.1]} 12. a3 {[%clk 0:02:36.7]} 12...
Bd6 {[%clk 0:02:46.9]} 13. b4 {[%clk 0:02:36.5]} 13... a6 {[%clk 0:02:45.7]} 14.
Rfe1 {[%clk 0:02:27]} 14... Nf6 {[%clk 0:02:45.2]} 15. e4 {[%clk 0:02:26.6]}
15... dxe4 {[%clk 0:02:45.1]} 16. Nxe4 {[%clk 0:02:27.5]} 16... Nxe4 {[%clk
0:02:45.6]} 17. Bxe4 {[%clk 0:02:27.9]} 17... Qf6 {[%clk 0:02:24.7]} 18. Rad1
{[%clk 0:02:24.6]} 18... a5 {[%clk 0:02:21.3]} 19. Qb1 {[%clk 0:02:12.3]} 19...
axb4 {[%clk 0:02:20.8]} 20. axb4 {[%clk 0:02:13.2]} 20... Bg4 {[%clk 0:02:11.8]}
21. Ne5 {[%clk 0:01:59.2]} 21... Bxd1 {[%clk 0:02:07.3]} 22. Nd7 {[%clk
0:01:54.2]} 22... Qxd4 {[%clk 0:01:44.5]} 23. Rxd1 {[%clk 0:01:31.5]} 23... Qxb4
{[%clk 0:01:40.9]} 24. Nxf8 {[%clk 0:01:31.9]} 24... Kxf8 {[%clk 0:01:23.2]} 25.
Qxb4 {[%clk 0:01:17.3]} 25... Bxb4 {[%clk 0:01:24.1]} 26. Rb1 {[%clk 0:01:17.8]}
26... Rd8 {[%clk 0:01:23.2]} 27. g3 {[%clk 0:01:11]} 27... Rd4 {[%clk
0:01:22.7]} 28. Bf5 {[%clk 0:01:07.6]} 28... Ke7 {[%clk 0:01:18.5]} 29. Bc8
{[%clk 0:01:06.9]} 29... b6 {[%clk 0:01:17.8]} 30. Ra1 {[%clk 0:01:02.8]} 30...
Ba5 {[%clk 0:01:14]} 31. Kg2 {[%clk 0:00:57.9]} 31... c5 {[%clk 0:01:12.8]} 32.
Kf3 {[%clk 0:00:58.3]} 32... Kd6 {[%clk 0:01:11.4]} 33. Ke2 {[%clk 0:00:47.1]}
33... c4 {[%clk 0:01:09.9]} 34. Ba6 {[%clk 0:00:43.1]} 34... Kc5 {[%clk
0:01:09.1]} 35. Rb1 {[%clk 0:00:43.2]} 35... Bb4 {[%clk 0:01:07.3]} 36. Ke3
{[%clk 0:00:40.5]} 36... b5 {[%clk 0:01:05]} 37. Bb7 {[%clk 0:00:31.8]} 37...
Bd2+ {[%clk 0:01:03.8]} 38. Ke2 {[%clk 0:00:31.6]} 38... b4 {[%clk 0:01:04.4]}
39. Ra1 {[%clk 0:00:29.5]} 39... b3 {[%clk 0:01:03.9]} 40. Bc8 {[%clk
0:00:17.7]} 40... c3 {[%clk 0:01:01.7]} 41. Bf5 {[%clk 0:00:16.6]} 41... c2
{[%clk 0:00:59.6]} 0-1

[Event "Early-Titled-Tuesday-Blitz-June-18-2024"]
[Site "Chess.com"]
[Date "2024.06.18"]
[Round "2"]
[White "Chernov_Alexander_A"]
[Black "gafkens"]
[Result "1-0"]
[WhiteElo "2295"]
[BlackElo "2614"]
[TimeControl "180+1"]
[EndTime "8:17:58 PDT"]
[Termination "Chernov_Alexander_A won by checkmate"]

1. d4 {[%clk 0:03:00.9]} 1... g6 {[%clk 0:02:57.8]} 2. Nc3 {[%clk 0:02:59.5]}
2... Bg7 {[%clk 0:02:57.4]} 3. e4 {[%clk 0:02:59.4]} 3... d6 {[%clk 0:02:52.2]}
4. Nf3 {[%clk 0:02:58.6]} 4... c6 {[%clk 0:02:47.9]} 5. Be2 {[%clk 0:02:53.8]}
5... b5 {[%clk 0:02:47.2]} 6. O-O {[%clk 0:02:48.2]} 6... b4 {[%clk 0:02:43.7]}
7. Nb1 {[%clk 0:02:47.1]} 7... Nf6 {[%clk 0:02:44]} 8. Bd3 {[%clk 0:02:45.8]}
8... a5 {[%clk 0:02:38.6]} 9. a3 {[%clk 0:02:45.2]} 9... Ba6 {[%clk 0:02:38.5]}
10. Re1 {[%clk 0:02:43.3]} 10... O-O {[%clk 0:02:35.9]} 11. c3 {[%clk
0:02:38.6]} 11... Bxd3 {[%clk 0:02:22.2]} 12. Qxd3 {[%clk 0:02:37.6]} 12... bxa3
{[%clk 0:02:03.2]} 13. Rxa3 {[%clk 0:02:35.8]} 13... Nbd7 {[%clk 0:01:58]} 14.
Nbd2 {[%clk 0:02:27.5]} 14... Qc7 {[%clk 0:01:53.2]} 15. Nf1 {[%clk 0:02:11.8]}
15... e5 {[%clk 0:01:45.5]} 16. dxe5 {[%clk 0:02:06.4]} 16... dxe5 {[%clk
0:01:41.1]} 17. Qc4 {[%clk 0:02:03.1]} 17... Nb6 {[%clk 0:01:39.5]} 18. Qc5
{[%clk 0:01:59.9]} 18... Nfd7 {[%clk 0:01:38.9]} 19. Qe3 {[%clk 0:01:59.1]}
19... Nc4 {[%clk 0:01:38.8]} 20. Qg5 {[%clk 0:01:48.3]} 20... Nxa3 {[%clk
0:01:38.6]} 21. bxa3 {[%clk 0:01:49.2]} 21... f6 {[%clk 0:01:38.5]} 22. Qg4
{[%clk 0:01:48.4]} 22... Nc5 {[%clk 0:01:34.4]} 23. Be3 {[%clk 0:01:34.8]} 23...
Qd7 {[%clk 0:01:34.4]} 24. Qg3 {[%clk 0:01:33]} 24... Ne6 {[%clk 0:01:34]} 25.
h4 {[%clk 0:01:30.9]} 25... Rfb8 {[%clk 0:01:29.7]} 26. h5 {[%clk 0:01:29]}
26... g5 {[%clk 0:01:25.6]} 27. h6 {[%clk 0:01:16.2]} 27... Bxh6 {[%clk
0:01:23.2]} 28. Qh3 {[%clk 0:01:16.3]} 28... Bg7 {[%clk 0:01:22.7]} 29. Ng3
{[%clk 0:01:16.4]} 29... Rb7 {[%clk 0:01:18.6]} 30. Nf5 {[%clk 0:01:16.2]} 30...
Bf8 {[%clk 0:01:15.9]} 31. Nh2 {[%clk 0:01:14.3]} 31... Ng7 {[%clk 0:01:09]} 32.
Ng4 {[%clk 0:00:58.5]} 32... Qe6 {[%clk 0:00:46.4]} 33. g3 {[%clk 0:00:41]}
33... Nxf5 {[%clk 0:00:42.8]} 34. exf5 {[%clk 0:00:40.3]} 34... Qf7 {[%clk
0:00:37.4]} 35. Kg2 {[%clk 0:00:36.8]} 35... Rb2 {[%clk 0:00:34.3]} 36. Rh1
{[%clk 0:00:28.1]} 36... Rab8 {[%clk 0:00:32.4]} 37. Nxf6+ {[%clk 0:00:26.5]}
37... Kg7 {[%clk 0:00:30.9]} 38. Qh6+ {[%clk 0:00:21.5]} 38... Kh8 {[%clk
0:00:27.5]} 39. Qxh7+ {[%clk 0:00:21.5]} 39... Qxh7 {[%clk 0:00:27.9]} 40. Rxh7#
{[%clk 0:00:21.3]} 1-0

[Event "Early-Titled-Tuesday-Blitz-June-18-2024"]
[Site "Chess.com"]
[Date "2024.06.18"]
[Round "2"]
[White "ketster"]
[Black "WilliamAlfaroCaracas"]
[Result "1-0"]
[WhiteElo "2568"]
[BlackElo "2364"]
[TimeControl "180+1"]
[EndTime "8:17:58 PDT"]
[Termination "ketster won by resignation"]

1. d4 {[%clk 0:02:28]} 1... Nf6 {[%clk 0:02:57.5]} 2. c4 {[%clk 0:02:25.9]} 2...
g6 {[%clk 0:02:54.8]} 3. Nc3 {[%clk 0:02:24.5]} 3... d5 {[%clk 0:02:54.9]} 4.
Nf3 {[%clk 0:02:24.4]} 4... Bg7 {[%clk 0:02:54.1]} 5. h4 {[%clk 0:02:19.3]} 5...
h5 {[%clk 0:02:29]} 6. Bg5 {[%clk 0:02:16.6]} 6... c6 {[%clk 0:02:28.2]} 7. e3
{[%clk 0:02:12.7]} 7... Ne4 {[%clk 0:02:28.4]} 8. Nxe4 {[%clk 0:02:09.7]} 8...
dxe4 {[%clk 0:02:25.8]} 9. Nd2 {[%clk 0:02:08.2]} 9... f5 {[%clk 0:02:23.2]} 10.
Qb3 {[%clk 0:01:55.8]} 10... c5 {[%clk 0:02:08.9]} 11. d5 {[%clk 0:01:44.1]}
11... O-O {[%clk 0:01:43.4]} 12. f3 {[%clk 0:01:39]} 12... exf3 {[%clk
0:01:38.1]} 13. gxf3 {[%clk 0:01:24.3]} 13... a5 {[%clk 0:01:33.8]} 14. Bd3
{[%clk 0:01:15.6]} 14... a4 {[%clk 0:01:31.7]} 15. Qc2 {[%clk 0:01:08.9]} 15...
a3 {[%clk 0:01:31]} 16. Rb1 {[%clk 0:01:06.5]} 16... axb2 {[%clk 0:01:27.9]} 17.
Rxb2 {[%clk 0:01:07.4]} 17... Bxb2 {[%clk 0:01:17.2]} 18. Qxb2 {[%clk
0:00:56.6]} 18... Nd7 {[%clk 0:01:17.1]} 19. Rg1 {[%clk 0:00:50.7]} 19... Rf7
{[%clk 0:01:14.3]} 20. Bh6 {[%clk 0:00:47.6]} 20... Kh7 {[%clk 0:01:14.3]} 21.
Bf4 {[%clk 0:00:41.9]} 21... Qb6 {[%clk 0:01:10.4]} 22. Nb3 {[%clk 0:00:36.4]}
22... e5 {[%clk 0:01:03]} 23. Bxe5 {[%clk 0:00:18.8]} 23... Nxe5 {[%clk
0:01:02.6]} 24. Qxe5 {[%clk 0:00:19.7]} 24... Rxa2 {[%clk 0:01:01.1]} 25. Nd2
{[%clk 0:00:15.8]} 25... Qf6 {[%clk 0:00:37.3]} 26. Qe8 {[%clk 0:00:13.4]} 26...
Bd7 {[%clk 0:00:35.1]} 27. Qb8 {[%clk 0:00:09.5]} 27... Qxh4+ {[%clk 0:00:34.7]}
28. Ke2 {[%clk 0:00:05.8]} 28... Qh2+ {[%clk 0:00:33.6]} 29. Qxh2 {[%clk
0:00:05.8]} 1-0

[Event "Early-Titled-Tuesday-Blitz-June-18-2024"]
[Site "Chess.com"]
[Date "2024.06.18"]
[Round "2"]
[White "Murad_Ibrahimli"]
[Black "ArtemDyachuk"]
[Result "1-0"]
[WhiteElo "2929"]
[BlackElo "2627"]
[TimeControl "180+1"]
[EndTime "8:17:59 PDT"]
[Termination "Murad_Ibrahimli won by checkmate"]

1. d4 {[%clk 0:02:59.7]} 1... Nf6 {[%clk 0:02:58.9]} 2. c4 {[%clk 0:02:59.2]}
2... e6 {[%clk 0:02:59.1]} 3. Nf3 {[%clk 0:02:57.7]} 3... c5 {[%clk 0:02:59.3]}
4. d5 {[%clk 0:02:57]} 4... d6 {[%clk 0:02:59.4]} 5. Nc3 {[%clk 0:02:56.3]} 5...
exd5 {[%clk 0:02:59.7]} 6. cxd5 {[%clk 0:02:55.7]} 6... g6 {[%clk 0:03:00.2]} 7.
Bf4 {[%clk 0:02:54.4]} 7... Bg7 {[%clk 0:03:00]} 8. h3 {[%clk 0:02:54.1]} 8...
O-O {[%clk 0:02:59.4]} 9. e3 {[%clk 0:02:54.3]} 9... Ne8 {[%clk 0:02:59.9]} 10.
Be2 {[%clk 0:02:53.1]} 10... Nd7 {[%clk 0:03:00.5]} 11. O-O {[%clk 0:02:52.5]}
11... Ne5 {[%clk 0:03:01.1]} 12. Nd2 {[%clk 0:02:51.6]} 12... a6 {[%clk
0:02:59.4]} 13. a4 {[%clk 0:02:50.6]} 13... b6 {[%clk 0:02:59.8]} 14. Bh2 {[%clk
0:02:49.7]} 14... f5 {[%clk 0:02:59.6]} 15. f4 {[%clk 0:02:48.9]} 15... Nf7
{[%clk 0:02:58.6]} 16. Kh1 {[%clk 0:02:45.6]} 16... Nc7 {[%clk 0:02:55.5]} 17.
Nc4 {[%clk 0:02:44.3]} 17... Rb8 {[%clk 0:02:49.3]} 18. Bf3 {[%clk 0:02:42.1]}
18... Re8 {[%clk 0:02:46.7]} 19. Re1 {[%clk 0:02:41.3]} 19... Bd7 {[%clk
0:02:41.4]} 20. e4 {[%clk 0:02:36.7]} 20... b5 {[%clk 0:02:35.4]} 21. axb5
{[%clk 0:02:36.1]} 21... axb5 {[%clk 0:02:36.3]} 22. Na5 {[%clk 0:02:36.6]}
22... b4 {[%clk 0:02:30.8]} 23. Na4 {[%clk 0:02:35.4]} 23... fxe4 {[%clk
0:02:24.5]} 24. Bxe4 {[%clk 0:02:33.6]} 24... Nh6 {[%clk 0:01:48.8]} 25. Nc6
{[%clk 0:02:30.4]} 25... Bxc6 {[%clk 0:01:47.1]} 26. dxc6 {[%clk 0:02:31.3]}
26... d5 {[%clk 0:01:24.8]} 27. Bf3 {[%clk 0:02:20.2]} 27... Rxe1+ {[%clk
0:01:15.8]} 28. Qxe1 {[%clk 0:02:21.1]} 28... c4 {[%clk 0:01:12.4]} 29. Rd1
{[%clk 0:02:04.2]} 29... d4 {[%clk 0:00:51.3]} 30. Nc5 {[%clk 0:01:59.9]} 30...
Nf5 {[%clk 0:00:27]} 31. Ne6 {[%clk 0:01:57.5]} 31... Nxe6 {[%clk 0:00:26.6]}
32. Qxe6+ {[%clk 0:01:58.4]} 32... Kh8 {[%clk 0:00:27.1]} 33. g4 {[%clk
0:01:57.2]} 33... Ne3 {[%clk 0:00:24.7]} 34. f5 {[%clk 0:01:56.4]} 34... Rc8
{[%clk 0:00:14.7]} 35. c7 {[%clk 0:01:52.6]} 35... Qf8 {[%clk 0:00:13.4]} 36.
Re1 {[%clk 0:01:24.3]} 36... Re8 {[%clk 0:00:07.5]} 37. Bb7 {[%clk 0:01:14.7]}
37... c3 {[%clk 0:00:04.9]} 38. bxc3 {[%clk 0:01:13.5]} 38... bxc3 {[%clk
0:00:05.8]} 39. Qxe8 {[%clk 0:01:05]} 39... Qxe8 {[%clk 0:00:05.5]} 40. c8=Q
{[%clk 0:01:05.9]} 40... Qxc8 {[%clk 0:00:05.5]} 41. Bxc8 {[%clk 0:01:06.8]}
41... c2 {[%clk 0:00:02.1]} 42. Bf4 {[%clk 0:01:03.4]} 42... Nd1 {[%clk
0:00:01.2]} 43. Re8+ {[%clk 0:01:01.4]} 43... Bf8 {[%clk 0:00:01.1]} 44. Be5+
{[%clk 0:01:01.9]} 44... Kg8 {[%clk 0:00:01.2]} 45. Be6# {[%clk 0:01:02.5]} 1-0